fUSD/lending_fUSD_20250812
["ID","MTS","AMOUNT","RATE_DAILY","PERIOD"]
[378797995,1755019894552,-400.0,0.00041917,30]
[378797996,1755019894563,-400.0,0.00041917,30]
[378797997,1755019894573,-1000.0,0.00041917,30]
[378797998,1755019894583,-1299.25,0.00041917,30]
[378797999,1755019894592,-400.0,0.00041917,30]
[378798000,1755019894601,-1172.85,0.00041917,30]
[378798001,1755019894611,-1034.16,0.00041917,30]
[378798002,1755019894620,-400.0,0.00041917,30]
[378798003,1755019894629,-400.0,0.00041917,30]
[378798004,1755019894640,-783.56,0.00041917,30]
[378798005,1755019894649,-400.0,0.00041917,30]
[378798006,1755019894659,-400.0,0.00041917,30]
[378798007,1755019894668,-400.0,0.00041917,30]
[378798008,1755019894678,-1408.03,0.00041917,30]
[378798009,1755019894687,-400.0,0.00041917,30]
[378798010,1755019894696,-400.0,0.00041917,30]
[378798011,1755019894705,-1085.29,0.00041917,30]
[378798012,1755019894714,-1341.55,0.00041917,30]
[378798013,1755019894724,-400.0,0.00041917,30]
[378798014,1755019894733,-533.38,0.00041917,30]
[378798015,1755019894742,-400.0,0.00041917,30]
[378798016,1755019894753,-400.0,0.00041917,30]
[378798017,1755019894762,-400.0,0.00041917,30]
[378798018,1755019894772,-1094.05,0.00041917,30]
[378798019,1755019894781,-400.0,0.00041917,30]
[378798020,1755019894791,-1199.8,0.00041917,30]
[378798021,1755019894799,-400.0,0.00041917,30]
[378798022,1755019894810,-400.0,0.00041917,30]
[378798023,1755019894825,-400.0,0.00041917,30]
[378798024,1755019894835,-400.0,0.00041917,30]
[378798025,1755019894844,-400.0,0.00041917,30]
[378798026,1755019894853,-1427.83,0.00041917,30]
[378798027,1755019894864,-400.0,0.00041917,30]
[378798028,1755019894873,-400.0,0.00041917,30]
[378798029,1755019894884,-400.0,0.00041917,30]
[378798030,1755019894893,-821.46,0.00041917,30]
[378798031,1755019894902,-630.0,0.00041917,30]
[378798032,1755019894911,-672.08,0.00041917,30]
[378798033,1755019894920,-1226.11,0.00041917,30]
[378798034,1755019894929,-400.0,0.00041917,30]
[378798035,1755019894938,-681.07,0.00041917,30]
[378798036,1755019894948,-400.0,0.00041917,30]
[378798037,1755019894957,-536.84,0.00041917,30]
[378798038,1755019894966,-471.22,0.00041917,30]
[378798039,1755019894975,-400.0,0.00041917,30]
[378798040,1755019894984,-400.0,0.00041917,30]
[378798041,1755019894994,-400.0,0.00041917,30]
[378798042,1755019895003,-400.0,0.00041917,30]
[378798043,1755019895012,-1645.17,0.00041917,30]
[378798044,1755019895022,-1215.72,0.00041917,30]
[378798045,1755019895031,-1010.45,0.00041917,14]
[378798046,1755019895040,-400.0,0.00041917,30]
[378798047,1755019895182,-400.0,0.00041917,30]
[378798048,1755019895192,-400.0,0.00041917,30]
[378798049,1755019895201,-1288.67,0.00041917,30]
[378798050,1755019895211,-400.0,0.00041917,30]
[378798051,1755019895220,-400.0,0.00041917,30]
[378798052,1755019895229,-400.0,0.00041917,30]
[378798053,1755019895238,-492.41,0.00041917,30]
[378798054,1755019895248,-688.84,0.00041917,30]
[378798055,1755019895257,-400.0,0.00041917,30]
[378798056,1755019895267,-400.0,0.00041917,30]
[378798057,1755019895276,-177.330725,0.00041917,30]
[378798058,1755019895286,-1202.36,0.00041917,30]
[378798059,1755019895295,-634.81,0.00041917,30]
[378798060,1755019895304,-400.0,0.00041917,30]
[378798061,1755019895316,-597.82,0.00041917,30]
[378798062,1755019895325,-1518.71,0.00041917,30]
[378798063,1755019895334,-737.74,0.00041917,30]
[378798064,1755019895344,-400.0,0.00041917,30]
[378798065,1755019895355,-771.66,0.00041917,30]
[378798066,1755019895365,-668.35,0.00041917,30]
[378798067,1755019895374,-1277.19,0.00041917,30]
[378798068,1755019895385,-620.97,0.00041917,30]
[378798069,1755019895395,-400.0,0.00041917,30]
[378798070,1755019895404,-400.0,0.00041917,30]
[378798071,1755019895413,-400.0,0.00041917,30]
[378798072,1755019895422,-400.0,0.00041917,30]
[378798073,1755019895434,-787.17,0.00041917,30]
[378798074,1755019895444,-400.0,0.00041917,30]
[378798075,1755019895454,-1265.17,0.00041917,30]
[378798076,1755019895463,-1312.52,0.00041917,30]
[378798077,1755019895473,-400.0,0.00041917,30]
[378798078,1755019895482,-308.422129,0.00041917,30]
[378798079,1755019895491,-400.0,0.00041917,30]
[378798080,1755019895501,-400.0,0.00041917,30]
[378798081,1755019895511,-400.0,0.00041917,30]
[378798082,1755019895522,-464.28,0.00041917,30]
[378798083,1755019895531,-2226.37,0.00041917,30]
[378798084,1755019895540,-726.28,0.00041917,30]
[378798085,1755019895550,-400.0,0.00041917,30]
[378798086,1755019895560,-400.0,0.00041917,30]
[378798087,1755019895570,-529.43,0.00041917,30]
[378798088,1755019895579,-400.0,0.00041917,30]
[378798089,1755019895589,-308.422129,0.00041917,30]
[378798090,1755019895598,-400.0,0.00041917,30]
[378798091,1755019895607,-650.77,0.00041917,30]
[378798092,1755019895617,-460.0,0.00041917,30]
[378798093,1755019895626,-400.0,0.00041917,30]
[378798094,1755019895637,-400.0,0.00041917,30]
[378798095,1755019895646,-400.0,0.00041917,30]
[378798096,1755019895655,-900.36,0.00041917,30]
[378798097,1755019895664,-300.0,0.00041917,30]
[378798098,1755019895673,-400.0,0.00041917,30]
[378798099,1755019895682,-400.0,0.00041917,30]
[378798100,1755019895691,-571.27,0.00041917,30]
[378798101,1755019895701,-711.69,0.00041917,30]
[378798102,1755019895711,-400.0,0.00041917,30]
[378798103,1755019895720,-1557.03,0.00041917,30]
[378798104,1755019895729,-400.0,0.00041917,30]
[378798105,1755019895737,-400.0,0.00041917,30]
[378798106,1755019895747,-400.0,0.00041917,30]
[378798107,1755019895756,-400.0,0.00041917,30]
[378798108,1755019895766,-516.09,0.00041917,30]
[378798109,1755019895775,-400.0,0.00041917,30]
[378798110,1755019895784,-422.99,0.00041917,30]
[378798111,1755019895793,-400.0,0.00041917,30]
[378798112,1755019895802,-400.0,0.00041917,30]
[378798113,1755019895811,-460.0,0.00041917,30]
[378798114,1755019895821,-523.55137927,0.00041917,30]
[378798115,1755019895830,-750.94,0.00041917,30]
[378798116,1755019895840,-1099.99,0.00041917,30]
[378798117,1755019895850,-819.89,0.00041917,30]
[378798118,1755019895859,-520.26,0.00041917,30]
[378798119,1755019895868,-859.51,0.00041917,30]
[378798120,1755019895878,-1305.1,0.00041917,30]
[378798121,1755019895888,-400.0,0.00041917,30]
[378798122,1755019895897,-500.0,0.00041921,10]
[378798123,1755019895906,-500.0,0.00041921,10]
[378798124,1755019895915,-150.0,0.00041954,2]
[378798125,1755019895924,-150.0,0.00041965,2]
[378798126,1755019895933,-150.0,0.00041982,2]
[378798127,1755019895942,-150.0,0.00041983,2]
[378798128,1755019895951,-150.0,0.00041989,14]
[378798129,1755019895960,-500.0,0.00041996,30]
[378798130,1755019895969,-552.0,0.00041996,30]
[378798131,1755019895978,-175.0,0.00041996,30]
[378798132,1755019895987,-150.0,0.00041996,30]
[378798133,1755019895997,-200.0,0.00042008,15]
[378798134,1755019896006,-5169.16079486,0.00042012,15]
[378798135,1755019896015,-150.0,0.00042014,2]
[378798136,1755019896024,-400.0,0.00042043,120]
[378798137,1755019896033,-150.0,0.00042056,2]
[378798138,1755019896042,-150.0,0.00042087,2]
[378798139,1755019896052,-150.0,0.00042124,2]
[378798140,1755019896062,-536.99020552,0.00042146,120]
[378798141,1755019896071,-150.0,0.00042146,2]
[378798142,1755019896080,-500.0,0.0004217,60]
[378798143,1755019896089,-150.0,0.00042181,2]
[378798144,1755019896098,-150.0,0.00042182,2]
[378798145,1755019896108,-150.0,0.00042182,2]
[378798146,1755019896117,-150.0,0.00042183,2]
[378798147,1755019896127,-150.0,0.00042186,2]
[378798148,1755019896137,-300.0,0.0004219,30]
[378798149,1755019896146,-500.0,0.0004219,30]
[378798150,1755019896156,-649.52,0.0004219,30]
[378798151,1755019896165,-999.0,0.0004219,120]
[378798152,1755019896174,-637.2771864,0.00042191,70]
[378798153,1755019896183,-400.0,0.00042191,30]
[378798154,1755019896192,-152.025873,0.00042191,30]
[378798155,1755019896201,-152.307296,0.00042191,30]
[378798156,1755019896210,-151.0,0.00042191,30]
[378798157,1755019896219,-151.0,0.00042191,30]
[378798158,1755019896229,-152.173572,0.00042191,30]
[378798159,1755019896238,-151.0,0.00042191,30]
[378798160,1755019896248,-151.0,0.00042191,30]
[378798161,1755019896257,-151.333078,0.00042191,30]
[378798162,1755019896267,-151.0,0.00042191,30]
[378798163,1755019896276,-151.0,0.00042191,30]
[378798164,1755019896285,-151.0,0.00042191,30]
[378798165,1755019896295,-151.0,0.00042191,30]
[378798166,1755019896305,-151.0,0.00042191,30]
[378798167,1755019896315,-151.0,0.00042191,30]
[378798168,1755019896324,-151.0,0.00042191,30]
[378798169,1755019896333,-151.719401,0.00042191,30]
[378798170,1755019896343,-151.0,0.00042191,30]
[378798171,1755019896354,-151.0,0.00042191,30]
[378798172,1755019896364,-400.0,0.00042191,30]
[378798173,1755019896373,-400.0,0.00042191,30]
[378798174,1755019896382,-400.0,0.00042191,30]
[378798175,1755019896395,-436.08,0.00042191,30]
[378798176,1755019896404,-400.0,0.00042191,30]
[378798177,1755019896413,-400.0,0.00042191,30]
[378798178,1755019896423,-400.0,0.00042191,30]
[378798179,1755019896433,-400.0,0.00042191,30]
[378798180,1755019896442,-400.0,0.00042191,30]
[378798181,1755019896452,-400.0,0.00042191,30]
[378798182,1755019896461,-400.0,0.00042191,30]
[378798183,1755019896470,-151.0,0.00042191,30]
[378798184,1755019896479,-400.0,0.00042191,30]
[378798185,1755019896489,-400.0,0.00042191,30]
[378798186,1755019896498,-441.29,0.00042191,30]
[378798187,1755019896507,-400.0,0.00042191,30]
[378798188,1755019896516,-400.0,0.00042191,30]
[378798189,1755019896525,-400.0,0.00042191,30]
[378798190,1755019896534,-400.0,0.00042191,30]
[378798191,1755019896543,-400.0,0.00042191,30]
[378798192,1755019896552,-400.0,0.00042191,30]
[378798193,1755019896561,-433.5,0.00042191,30]
[378798194,1755019896570,-400.0,0.00042191,30]
[378798195,1755019896580,-400.0,0.00042191,30]
[378798196,1755019896589,-400.0,0.00042191,30]
[378798197,1755019896599,-400.0,0.00042191,30]
[378798198,1755019896608,-400.0,0.00042191,30]
[378798199,1755019896617,-400.0,0.00042191,30]
[378798200,1755019896626,-400.0,0.00042191,30]
[378798201,1755019896637,-400.0,0.00042191,30]
[378798202,1755019896646,-400.0,0.00042191,30]
[378798203,1755019896655,-400.0,0.00042191,30]
[378798204,1755019896664,-518.0,0.00042191,30]
[378798205,1755019896673,-400.0,0.00042191,30]
[378798206,1755019896683,-425.11,0.00042191,30]
[378798207,1755019896691,-400.0,0.00042191,30]
[378798208,1755019896701,-406.28085583,0.00042191,30]
[378798209,1755019896710,-400.0,0.00042191,30]
[378798210,1755019896719,-151.0,0.00042191,30]
[378798211,1755019896729,-366.12245091,0.00042191,30]
[378798212,1755019896737,-469.86538998,0.00042191,30]
[378798213,1755019896746,-400.0,0.00042191,30]
[378798214,1755019896756,-400.0,0.00042191,30]
[378798215,1755019896765,-400.0,0.00042191,30]
[378798216,1755019896774,-400.0,0.00042191,30]
[378798217,1755019896783,-400.0,0.00042191,30]
[378798218,1755019896792,-400.0,0.00042191,30]
[378798219,1755019896801,-401.34,0.00042191,30]
[378798220,1755019896811,-502.57,0.00042191,30]
[378798221,1755019896821,-400.0,0.00042191,30]
[378798222,1755019896830,-400.0,0.00042191,30]
[378798223,1755019896840,-400.0,0.00042191,30]
[378798224,1755019896849,-400.0,0.00042191,30]
[378798225,1755019896858,-400.0,0.00042191,30]
[378798226,1755019896868,-400.0,0.00042191,30]
[378798227,1755019896877,-400.0,0.00042191,30]
[378798228,1755019896887,-400.0,0.00042191,30]
[378798229,1755019896896,-151.0,0.00042191,30]
[378798230,1755019896905,-400.0,0.00042191,30]
[378798231,1755019896914,-400.0,0.00042191,30]
[378798232,1755019896923,-400.0,0.00042191,30]
[378798233,1755019896933,-400.0,0.00042191,30]
[378798234,1755019896942,-400.0,0.00042191,30]
[378798235,1755019896951,-400.0,0.00042191,30]
[378798236,1755019896960,-151.0,0.00042191,30]
[378798237,1755019896970,-400.0,0.00042191,30]
[378798238,1755019896979,-400.0,0.00042191,30]
[378798239,1755019896988,-400.0,0.00042191,30]
[378798240,1755019896997,-400.0,0.00042191,30]
[378798241,1755019897006,-281.82471847,0.00042191,30]
[378798242,1755019897015,-400.0,0.00042191,30]
[378798243,1755019897025,-400.0,0.00042191,30]
[378798244,1755019897034,-154.63,0.00042191,30]
[378798245,1755019897043,-400.0,0.00042191,30]
[378798246,1755019897052,-400.0,0.00042191,30]
[378798247,1755019897061,-433.58,0.00042191,30]
[378798248,1755019897071,-400.0,0.00042191,30]
[378798249,1755019897080,-400.0,0.00042191,30]
[378798250,1755019897089,-400.0,0.00042191,30]
[378798251,1755019897099,-400.0,0.00042191,30]
[378798252,1755019897108,-400.0,0.00042191,30]
[378798253,1755019897117,-400.0,0.00042191,30]
[378798254,1755019897127,-151.0,0.00042191,30]
[378798255,1755019897136,-400.0,0.00042191,30]
[378798256,1755019897145,-400.0,0.00042191,30]
[378798257,1755019897154,-400.0,0.00042191,30]
[378798258,1755019897164,-400.0,0.00042191,30]
[378798259,1755019897173,-400.0,0.00042191,30]
[378798260,1755019897182,-400.0,0.00042191,30]
[378798261,1755019897191,-400.0,0.00042191,30]
[378798262,1755019897201,-151.0,0.00042191,30]
[378798263,1755019897210,-400.0,0.00042191,30]
[378798264,1755019897220,-151.0,0.00042191,30]
[378798265,1755019897229,-400.0,0.00042191,30]
[378798266,1755019897238,-400.0,0.00042191,30]
[378798267,1755019897247,-288.95367448,0.00042191,30]
[378798268,1755019897257,-400.0,0.00042191,30]
[378798269,1755019897266,-400.0,0.00042191,30]
[378798270,1755019897275,-400.0,0.00042191,30]
[378798271,1755019897284,-400.0,0.00042191,30]
[378798272,1755019897294,-400.0,0.00042191,30]
[378798273,1755019897303,-400.0,0.00042191,30]
[378798274,1755019897313,-220.23374405,0.00042191,30]
[378798275,1755019897322,-400.0,0.00042191,30]
[378798276,1755019897331,-400.0,0.00042191,30]
[378798277,1755019897340,-151.0,0.00042191,30]
[378798278,1755019897352,-151.0,0.00042191,30]
[378798279,1755019897363,-400.0,0.00042191,30]
[378798280,1755019897372,-400.0,0.00042191,30]
[378798281,1755019897382,-400.0,0.00042191,30]
[378798282,1755019897518,-400.0,0.00042191,30]
[378798283,1755019897528,-151.0,0.00042191,30]
[378798284,1755019897537,-400.0,0.00042191,30]
[378798285,1755019897547,-400.0,0.00042191,30]
[378798286,1755019897556,-400.0,0.00042191,30]
[378798287,1755019897565,-400.0,0.00042191,30]
[378798288,1755019897574,-417.61345589,0.00042191,30]
[378798289,1755019897583,-400.0,0.00042191,30]
[378798290,1755019897593,-400.0,0.00042191,30]
[378798291,1755019897602,-400.0,0.00042191,30]
[378798292,1755019897611,-151.0,0.00042191,30]
[378798293,1755019897620,-400.0,0.00042191,30]
[378798294,1755019897630,-420.59,0.00042191,30]
[378798295,1755019897640,-151.39276,0.00042191,30]
[378798296,1755019897653,-400.0,0.00042191,30]
[378798297,1755019897662,-658.66,0.00042191,30]
[378798298,1755019897671,-400.0,0.00042191,30]
[378798299,1755019897681,-151.0,0.00042191,30]
[378798300,1755019897690,-400.0,0.00042191,30]
[378798301,1755019897699,-151.0,0.00042191,30]
[378798302,1755019897708,-151.0,0.00042191,30]
[378798303,1755019897717,-400.0,0.00042191,30]
[378798304,1755019897727,-400.0,0.00042191,30]
[378798305,1755019897735,-151.0,0.00042191,30]
[378798306,1755019897745,-400.0,0.00042191,30]
[378798307,1755019897754,-414.33,0.00042191,30]
[378798308,1755019897763,-400.0,0.00042191,30]
[378798309,1755019897772,-400.0,0.00042191,30]
[378798310,1755019897782,-653.53,0.00042191,30]
[378798311,1755019897791,-400.0,0.00042191,30]
[378798312,1755019897801,-400.25,0.00042191,30]
[378798313,1755019897810,-555.5,0.00042191,30]
[378798314,1755019897819,-400.0,0.00042191,30]
[378798315,1755019897829,-400.0,0.00042191,30]
[378798316,1755019897838,-400.0,0.00042191,30]
[378798317,1755019897847,-623.38,0.00042191,30]
[378798318,1755019897857,-400.0,0.00042191,30]
[378798319,1755019897867,-404.07,0.00042191,30]
[378798320,1755019897877,-285.53395955,0.00042191,30]
[378798321,1755019897886,-400.0,0.00042191,30]
[378798322,1755019897897,-173.959028,0.00042191,30]
[378798323,1755019897906,-400.0,0.00042191,30]
[378798324,1755019897916,-400.0,0.00042191,30]
[378798325,1755019897925,-455.13,0.00042191,30]
[378798326,1755019897935,-400.0,0.00042191,30]
[378798327,1755019897944,-400.0,0.00042191,30]
[378798328,1755019897954,-636.44,0.00042191,30]
[378798329,1755019897964,-400.0,0.00042191,30]
[378798330,1755019897973,-679.29,0.00042191,30]
[378798331,1755019897983,-400.0,0.00042191,30]
[378798332,1755019897992,-669.37,0.00042191,30]
[378798333,1755019898002,-496.17,0.00042191,30]
[378798334,1755019898011,-400.0,0.00042191,30]
[378798335,1755019898020,-530.59,0.00042191,30]
[378798336,1755019898030,-1264.72,0.00042191,30]
[378798337,1755019898039,-400.0,0.00042191,30]
[378798338,1755019898049,-400.0,0.00042191,30]
[378798339,1755019898058,-400.0,0.00042191,30]
[378798340,1755019898068,-899.63,0.00042191,30]
[378798341,1755019898077,-400.0,0.00042191,30]
[378798342,1755019898086,-400.0,0.00042191,30]
[378798343,1755019898096,-724.28,0.00042191,30]
[378798344,1755019898105,-1281.83,0.00042191,30]
[378798345,1755019898115,-475.9,0.00042191,30]
[378798346,1755019898124,-400.0,0.00042191,30]
[378798347,1755019898134,-668.09,0.00042191,30]
[378798348,1755019898144,-400.0,0.00042191,30]
[378798349,1755019898153,-400.0,0.00042191,30]
[378798350,1755019898162,-431.73,0.00042191,30]
[378798351,1755019898171,-400.0,0.00042191,30]
[378798352,1755019898181,-831.32,0.00042191,30]
[378798353,1755019898190,-414.6,0.00042191,30]
[378798354,1755019898199,-400.0,0.00042191,30]
[378798355,1755019898208,-400.0,0.00042191,30]
[378798356,1755019898217,-400.0,0.00042191,30]
[378798357,1755019898227,-400.0,0.00042191,30]
[378798358,1755019898236,-400.0,0.00042191,30]
[378798359,1755019898245,-400.0,0.00042191,30]
[378798360,1755019898254,-496.01,0.00042191,30]
[378798361,1755019898263,-151.0,0.00042191,30]
[378798362,1755019898273,-400.0,0.00042191,30]
[378798363,1755019898283,-736.4,0.00042191,30]
[378798364,1755019898293,-400.0,0.00042191,30]
[378798365,1755019898302,-400.0,0.00042191,30]
[378798366,1755019898311,-151.0,0.00042191,30]
[378798367,1755019898320,-1027.9,0.00042191,30]
[378798368,1755019898329,-559.57,0.00042191,30]
[378798369,1755019898339,-400.0,0.00042191,30]
[378798370,1755019898348,-151.0,0.00042191,30]
[378798371,1755019898361,-419.24,0.00042191,30]
[378798372,1755019898370,-400.0,0.00042191,30]
[378798373,1755019898379,-422.61,0.00042191,30]
[378798374,1755019898388,-473.72,0.00042191,30]
[378798375,1755019898400,-400.0,0.00042191,30]
[378798376,1755019898410,-400.0,0.00042191,30]
[378798377,1755019898419,-400.0,0.00042191,30]
[378798378,1755019898429,-400.0,0.00042191,30]
[378798379,1755019898438,-400.0,0.00042191,30]
[378798380,1755019898447,-523.85,0.00042191,30]
[378798381,1755019898456,-400.0,0.00042191,30]
[378798382,1755019898465,-400.0,0.00042191,30]
[378798383,1755019898475,-400.0,0.00042191,30]
[378798384,1755019898484,-400.0,0.00042191,30]
[378798385,1755019898493,-411.75,0.00042191,30]
[378798386,1755019898502,-400.0,0.00042191,30]
[378798387,1755019898512,-400.0,0.00042191,30]
[378798388,1755019898521,-400.0,0.00042191,30]
[378798389,1755019898530,-575.7,0.00042191,30]
[378798390,1755019898539,-893.56,0.00042191,30]
[378798391,1755019898549,-400.0,0.00042191,30]
[378798392,1755019898558,-400.0,0.00042191,30]
[378798393,1755019898567,-400.0,0.00042191,30]
[378798394,1755019898576,-402.95,0.00042191,30]
[378798395,1755019898585,-400.0,0.00042191,30]
[378798396,1755019898594,-400.0,0.00042191,30]
[378798397,1755019898603,-489.02,0.00042191,30]
[378798398,1755019898612,-728.37,0.00042191,30]
[378798399,1755019898621,-498.37170207,0.00042191,30]
[378798400,1755019898630,-400.0,0.00042191,30]
[378798401,1755019898640,-634.36,0.00042191,30]
[378798402,1755019898649,-578.03,0.00042191,30]
[378798403,1755019898658,-400.0,0.00042191,30]
[378798404,1755019898668,-400.0,0.00042191,30]
[378798405,1755019898677,-400.0,0.00042191,30]
[378798406,1755019898686,-400.0,0.00042191,30]
[378798407,1755019898695,-400.0,0.00042191,30]
[378798408,1755019898704,-400.0,0.00042191,30]
[378798409,1755019898714,-409.79,0.00042191,30]
[378798410,1755019898725,-481.87,0.00042191,30]
[378798411,1755019898735,-400.0,0.00042191,30]
[378798412,1755019898744,-1141.25,0.00042191,30]
[378798413,1755019898753,-1971.72,0.00042191,30]
[378798414,1755019898762,-400.0,0.00042191,30]
[378798415,1755019898771,-400.0,0.00042191,30]
[378798416,1755019898780,-806.62,0.00042191,30]
[378798417,1755019898789,-755.92,0.00042191,30]
[378798418,1755019898799,-400.0,0.00042191,30]
[378798419,1755019898808,-400.0,0.00042191,30]
[378798420,1755019898817,-681.4,0.00042191,30]
[378798421,1755019898826,-400.0,0.00042191,30]
[378798422,1755019898836,-917.86,0.00042191,30]
[378798423,1755019898846,-400.0,0.00042191,30]
[378798424,1755019898855,-892.34,0.00042191,30]
[378798425,1755019898865,-400.0,0.00042191,30]
[378798426,1755019898874,-503.95,0.00042191,30]
[378798427,1755019898883,-400.0,0.00042191,30]
[378798428,1755019898894,-400.0,0.00042191,30]
[378798429,1755019898903,-653.1,0.00042191,30]
[378798430,1755019898912,-443.60047544,0.00042191,30]
[378798431,1755019898921,-400.0,0.00042191,30]
[378798432,1755019898930,-782.7,0.00042191,30]
[378798433,1755019898939,-636.77,0.00042191,30]
[378798434,1755019898948,-400.0,0.00042191,30]
[378798435,1755019898957,-400.0,0.00042191,30]
[378798436,1755019898966,-460.51,0.00042191,30]
[378798437,1755019898975,-400.0,0.00042191,30]
[378798438,1755019898984,-400.0,0.00042191,30]
[378798439,1755019898993,-400.0,0.00042191,30]
[378798440,1755019899002,-400.0,0.00042191,30]
[378798441,1755019899011,-400.0,0.00042191,30]
[378798442,1755019899020,-400.0,0.00042191,30]
[378798443,1755019899029,-612.0,0.00042191,30]
[378798444,1755019899038,-400.0,0.00042191,30]
[378798445,1755019899048,-400.0,0.00042191,30]
[378798446,1755019899057,-1355.45,0.00042191,30]
[378798447,1755019899066,-400.0,0.00042191,30]
[378798448,1755019899075,-400.0,0.00042191,30]
[378798449,1755019899084,-1041.9,0.00042191,30]
[378798450,1755019899093,-400.0,0.00042191,30]
[378798451,1755019899102,-400.0,0.00042191,30]
[378798452,1755019899111,-400.0,0.00042191,30]
[378798453,1755019899120,-400.0,0.00042191,30]
[378798454,1755019899130,-400.0,0.00042191,30]
[378798455,1755019899139,-400.0,0.00042191,30]
[378798456,1755019899149,-943.43,0.00042191,30]
[378798457,1755019899158,-780.5,0.00042191,30]
[378798458,1755019899167,-760.16,0.00042191,30]
[378798459,1755019899176,-400.0,0.00042191,30]
[378798460,1755019899186,-400.0,0.00042191,30]
[378798461,1755019899194,-400.0,0.00042191,30]
[378798462,1755019899203,-400.0,0.00042191,30]
[378798463,1755019899212,-400.0,0.00042191,30]
[378798464,1755019899221,-452.36,0.00042191,30]
[378798465,1755019899231,-400.0,0.00042191,30]
[378798466,1755019899240,-400.0,0.00042191,30]
[378798467,1755019899249,-436.31,0.00042191,30]
[378798468,1755019899258,-400.0,0.00042191,30]
[378798469,1755019899269,-400.0,0.00042191,30]
[378798470,1755019899278,-400.0,0.00042191,30]
[378798471,1755019899289,-400.0,0.00042191,30]
[378798472,1755019899298,-703.91,0.00042191,30]
[378798473,1755019899307,-400.0,0.00042191,30]
[378798474,1755019899318,-400.0,0.00042191,30]
[378798475,1755019899327,-400.0,0.00042191,30]
[378798476,1755019899340,-656.68,0.00042191,30]
[378798477,1755019899352,-400.0,0.00042191,30]
[378798478,1755019899362,-616.18,0.00042191,30]
[378798479,1755019899371,-515.12,0.00042191,30]
[378798480,1755019899380,-400.0,0.00042191,30]
[378798481,1755019899391,-400.0,0.00042191,30]
[378798482,1755019899401,-447.36,0.00042191,30]
[378798483,1755019899410,-400.0,0.00042191,30]
[378798484,1755019899420,-659.95,0.00042191,30]
[378798485,1755019899430,-400.0,0.00042191,30]
[378798486,1755019899441,-341.06,0.00042191,30]
[378798487,1755019899450,-400.0,0.00042191,30]
[378798488,1755019899460,-400.0,0.00042191,30]
[378798489,1755019899469,-400.0,0.00042191,30]
[378798490,1755019899479,-833.7,0.00042191,30]
[378798491,1755019899488,-400.0,0.00042191,30]
[378798492,1755019899497,-400.0,0.00042191,30]
[378798493,1755019899507,-714.71,0.00042191,30]
[378798494,1755019899516,-400.0,0.00042191,30]